bitfinex/quotes_ETHUSD_20220212
["timestamp","ask_amount","ask_price","bid_price","bid_amount"]
[1644669305981,3.2066,2914.0,2912.7,0.491]
[1644669306181,7.0066,2914.0,2912.7,0.491]
[1644669306389,0.56781666,2913.1,2912.7,0.491]
[1644669306582,1.1716,2913.9,2912.7,0.491]
[1644669306820,3.5,2913.8,2912.7,0.491]
[1644669307022,0.1716,2913.7,2912.5,0.52994602]
[1644669307623,0.58355617,2913.5,2912.5,0.52994602]
[1644669307823,0.1716,2913.4,2913.0,0.65139521]
[1644669308023,0.3,2913.5,2913.0,0.65139521]
[1644669308223,1.2335,2914.1,2913.0,0.65139521]
[1644669308624,1.5335,2914.1,2913.0,0.65139521]
[1644669308826,1.5335,2914.1,2912.9,0.00934959]
[1644669308827,0.62401946,2913.7,2912.9,0.00934959]
[1644669309133,0.16944424,2913.2,2912.3,0.741]
[1644669309326,0.04489438,2913.1,2912.3,1.791]
[1644669309529,0.04489438,2913.1,2912.7,0.03740265]
[1644669309930,0.75129,2913.1,2912.7,0.03740265]
[1644669310132,0.04489438,2913.1,2912.7,0.03740265]
[1644669310330,0.04489438,2913.1,2912.5,0.60743085]
[1644669310578,0.04489438,2913.1,2912.8,0.0093497]
[1644669311370,0.04489438,2913.1,2912.8,0.00810415]
[1644669311571,0.04489438,2913.1,2912.5,3.94844543]
[1644669311783,0.04489438,2913.1,2912.6,1.491]
[1644669311981,0.04489438,2913.1,2912.7,3.5]
[1644669312181,0.1716,2914.1,2913.0,0.0125161]
[1644669312479,0.16793945,2914.6,2913.1,6.142]
[1644669312480,0.33953945,2914.6,2913.1,6.142]
[1644669312679,0.16793945,2914.6,2913.2,0.491]
[1644669312876,0.70932342,2914.4,2913.7,0.5425004]
[1644669313077,0.1715,2914.3,2913.6,0.491]
[1644669313276,0.1808466,2914.3,2913.6,0.491]
[1644669313676,0.0093466,2914.3,2913.6,0.491]
[1644669314076,0.16793945,2914.6,2913.6,0.491]
[1644669314327,0.00934681,2914.3,2913.6,0.491]
[1644669314727,0.00934681,2914.3,2913.8,0.55072008]
[1644669314928,0.18084681,2914.3,2913.6,0.491]
[1644669315329,0.3,2914.4,2913.6,0.491]
[1644669315529,0.00934681,2914.3,2913.6,0.491]
[1644669316127,0.00934681,2914.3,2913.8,0.71692788]
[1644669316532,0.96231142,2914.4,2913.8,0.71692788]
[1644669316729,0.18084702,2914.3,2913.8,0.71692788]
[1644669317532,0.16887045,2914.6,2913.9,0.491]
[1644669317533,0.16797045,2914.6,2913.9,0.491]
[1644669317733,0.16797045,2914.6,2914.0,3.8]
[1644669317934,9.627e-05,2914.3,2914.1,1.0]
[1644669318195,3.38392143,2916.1,2914.1,1.0]
[1644669318196,0.001,2915.9,2914.2,17.992]
[1644669318394,0.53183734,2916.4,2915.7,0.7046977]
[1644669318592,1.45965869,2916.3,2915.7,0.7046977]
[1644669318792,0.001,2916.2,2915.7,0.7046977]
[1644669318991,0.53183734,2916.4,2915.4,0.491]
[1644669319191,1.45958779,2916.3,2915.4,0.491]
[1644669319396,0.1723,2916.2,2915.4,0.491]
[1644669319798,0.1713,2916.2,2915.4,0.491]
[1644669319998,0.1713,2916.2,2915.6,0.5356076]
[1644669320197,0.53183734,2916.4,2915.6,0.5356076]
[1644669320198,0.1713,2916.3,2915.6,0.5356076]
[1644669321209,1.45967796,2916.2,2915.6,0.5356076]
[1644669321399,0.1723,2916.1,2915.4,0.491]
[1644669321607,0.18164839,2916.1,2915.4,0.491]
[1644669321823,0.00934839,2916.1,2915.4,0.491]
[1644669322423,0.3,2916.4,2915.9,0.63895991]
[1644669322624,0.4713,2916.4,2915.9,0.63895991]
[1644669322823,0.27739994,2917.0,2915.9,0.63895991]
[1644669322824,1.45958238,2916.3,2915.9,0.63895991]
[1644669323023,0.001,2916.2,2915.9,0.63895991]
[1644669323226,0.27639994,2917.0,2915.4,0.491]
[1644669323227,1.40957276,2916.8,2916.0,0.491]
[1644669323423,0.1713,2917.0,2916.0,0.491]
[1644669323623,0.66729557,2916.7,2916.1,0.54454718]
[1644669323825,0.66729557,2916.7,2916.2,0.491]
[1644669324023,0.00934789,2916.5,2916.2,0.491]
[1644669324426,0.1713,2916.4,2916.2,0.491]
[1644669325031,3.70203913,2916.6,2915.8,0.03664714]
[1644669325228,0.1713,2916.3,2915.8,0.03664714]
[1644669325427,0.52344127,2916.2,2915.8,0.03664714]
[1644669325670,0.82344127,2916.2,2915.8,0.03664714]
[1644669325872,0.17212851,2916.1,2915.8,0.03664714]
[1644669326275,0.18147684,2916.1,2915.8,0.03664714]
[1644669327077,0.01017684,2916.1,2915.8,0.03664714]
[1644669327277,0.00082851,2916.1,2915.8,0.03664714]
[1644669327481,0.0101769,2916.1,2915.8,0.03664714]
[1644669328377,0.00082851,2916.1,2915.8,0.03664714]
[1644669328582,4.84012409,2917.0,2915.8,0.7110117]
[1644669328583,0.6537756,2917.0,2915.8,0.7110117]
[1644669328783,0.00934839,2916.1,2915.9,0.491]
[1644669328977,3.53737392,2917.6,2916.1,6.142]
[1644669328978,0.1723,2917.5,2916.1,6.142]
[1644669329178,0.0381807,2916.5,2916.2,0.491]
[1644669329441,0.0381807,2916.5,2916.2,1.491]
[1644669330939,0.0381807,2916.5,2916.3,0.51075125]
[1644669331143,0.0381807,2916.5,2915.9,0.8893852]
[1644669331144,0.0381807,2916.5,2915.9,0.0320752]
[1644669332239,0.0381807,2916.5,2916.1,0.59563633]
[1644669332438,0.3381807,2916.5,2916.1,0.59563633]
[1644669332646,0.0381807,2916.5,2916.1,0.59563633]
[1644669333479,0.00934341,2916.4,2915.9,0.0320752]
[1644669334382,0.03816656,2916.4,2915.8,1.0]
[1644669334585,0.5501882,2916.3,2915.8,1.0]
[1644669334984,0.8501882,2916.3,2915.8,1.0]
[1644669335189,0.8501882,2916.3,2915.7,0.81601929]
[1644669335384,0.30934357,2916.3,2915.7,0.81601929]
[1644669335585,0.3,2916.3,2915.7,0.51601929]
[1644669336087,0.00934342,2916.2,2915.7,0.51601929]
[1644669336923,0.62633818,2916.3,2915.7,0.51601929]
[1644669337222,0.00934331,2916.2,2915.7,0.51601929]
[1644669338123,0.62633818,2916.3,2915.7,0.51601929]
[1644669338323,0.00934331,2916.2,2915.8,2.25]
[1644669338523,0.00934331,2916.2,2915.7,0.51601929]
[1644669339130,0.0474816,2916.2,2915.9,0.03302692]
[1644669339328,0.03813829,2916.2,2915.9,0.03302692]
[1644669339529,0.0474816,2916.2,2915.9,0.03302692]
[1644669340576,0.88345558,2916.1,2915.9,0.03302692]
[1644669340775,1.18345558,2916.1,2915.9,0.03302692]
[1644669343178,1.18345558,2916.1,2915.5,0.18394616]
[1644669343376,1.01215558,2916.1,2915.2,0.56142509]
[1644669343778,1.01215558,2916.1,2915.2,0.72407735]
[1644669343979,1.01215558,2916.1,2915.2,0.68669059]
[1644669344178,1.03968585,2916.1,2915.2,0.68669059]
[1644669344631,1.03968585,2916.1,2915.2,0.98669059]
[1644669344930,1.03968585,2916.1,2915.2,0.68669059]
[1644669345130,1.03968585,2916.1,2915.2,0.82403833]
[1644669345331,1.03968585,2916.1,2915.2,0.98669059]
[1644669345536,1.04052499,2916.1,2915.2,0.46265226]
[1644669345831,0.1713,2916.0,2915.2,0.16265226]
[1644669346030,1.04052499,2916.1,2915.2,0.16265226]
[1644669346630,1.04052499,2916.1,2915.2,0.46265226]
[1644669346831,1.04052499,2916.1,2915.2,0.16265226]
[1644669347832,0.66144418,2915.6,2915.1,0.491]
[1644669348092,0.66144418,2915.6,2915.1,0.04673234]
[1644669348278,1.13294418,2915.6,2915.1,0.04673234]
[1644669348676,1.13294418,2915.6,2915.3,0.03537448]
[1644669348677,0.4715,2915.6,2915.3,0.03537448]
[1644669348878,0.3,2915.6,2915.3,0.03537448]
[1644669349076,0.02916747,2916.0,2915.3,0.03537448]
[1644669349276,1.45973406,2915.9,2915.3,0.03537448]
[1644669349683,2.05973406,2915.9,2915.3,0.03537448]
[1644669350081,0.60103374,2915.4,2915.3,0.03537448]
[1644669351682,0.1713,2915.8,2915.3,0.03537448]
[1644669351934,0.03000549,2916.0,2915.3,0.19802674]
[1644669352132,0.03000549,2916.0,2915.4,0.491]
[1644669352530,0.03000549,2916.0,2915.4,0.65365226]
[1644669352930,0.55570112,2915.9,2915.4,0.65365226]
[1644669353131,0.03000549,2916.0,2915.4,0.65365226]
[1644669353531,0.03000549,2916.0,2915.4,0.60365226]
[1644669354133,0.12515342,2915.5,2915.4,0.60365226]
[1644669354939,0.12515342,2915.5,2915.4,1.60365226]
[1644669355339,0.12515342,2915.5,2915.4,1.441]
[1644669355884,0.12515342,2915.5,2915.4,0.441]
[1644669358778,0.06882367,2915.5,2915.4,0.441]
[1644669360830,1.82844372,2915.5,2915.4,0.441]
[1644669361136,0.36882367,2915.5,2915.4,0.441]
[1644669362131,1.82844838,2915.5,2915.4,0.441]
[1644669362331,0.36882367,2915.5,2915.4,0.441]
[1644669363078,0.06882367,2915.5,2915.4,0.441]
[1644669363283,0.36882367,2915.5,2915.4,0.441]
[1644669363479,1.82840196,2915.5,2915.4,0.441]
[1644669363978,1.8283678,2915.5,2915.4,0.441]
[1644669364180,1.65362171,2915.5,2915.4,0.441]
[1644669364388,1.95362171,2915.5,2915.4,0.441]
[1644669364585,0.49407758,2915.5,2915.4,0.441]
[1644669364787,0.19407758,2915.5,2915.4,0.441]
[1644669364986,0.49407758,2915.5,2915.4,0.441]
[1644669365385,0.19407758,2915.5,2915.4,0.441]
[1644669365588,0.49407758,2915.5,2915.4,0.441]
[1644669366087,0.19407758,2915.5,2915.4,0.441]
[1644669366296,0.49407758,2915.5,2915.4,0.441]
[1644669366687,0.19407758,2915.5,2915.4,0.441]
[1644669370337,0.19407758,2915.5,2915.4,3.77557711]
[1644669370584,0.19407758,2915.5,2915.4,0.441]
[1644669370777,0.19407758,2915.5,2915.4,1.441]
[1644669370978,0.19407758,2915.5,2915.4,0.441]
[1644669371677,0.19407758,2915.5,2915.3,0.86380746]
[1644669372077,0.19407758,2915.5,2915.3,0.56380746]
[1644669372479,0.19407758,2915.5,2915.3,0.03537448]
[1644669372681,0.19407758,2915.5,2914.9,0.03738673]
[1644669372682,0.06140287,2915.1,2914.9,0.03738673]
[1644669372878,0.06140287,2915.1,2914.7,0.1715]
[1644669372879,1.45979364,2915.0,2914.7,0.1715]
[1644669373277,1.75979364,2915.0,2914.7,0.1715]
[1644669373479,2.08345928,2914.9,2914.7,0.1715]
[1644669373679,0.62366564,2914.9,2914.7,0.1715]
[1644669374325,0.3,2915.0,2914.7,0.180846]
[1644669374528,0.3,2915.0,2914.7,0.009346]
[1644669374732,1.45989451,2914.9,2914.7,0.009346]
[1644669374930,0.36140287,2915.1,2914.7,0.009346]
[1644669375131,1.45991078,2915.0,2914.7,0.009346]
[1644669375331,1.75991078,2915.0,2914.5,0.00341954]
[1644669375531,0.90342511,2915.0,2914.8,0.00934589]
[1644669375831,0.3,2915.0,2914.8,0.00934589]
[1644669376034,0.06140287,2915.1,2914.8,0.00934589]
[1644669376035,0.06140287,2915.1,2914.9,0.65365226]
[1644669376831,0.06140287,2915.1,2914.9,0.66299804]
[1644669377830,0.06140287,2915.1,2914.9,0.65365226]
[1644669378088,0.06140287,2915.1,2914.9,0.66299804]
[1644669378579,0.03215038,2915.0,2914.9,0.66299804]
[1644669378980,0.03215038,2915.0,2914.9,0.65365226]
[1644669379384,0.03215038,2915.0,2914.9,0.491]
[1644669380686,0.03298867,2915.0,2914.9,0.491]
[1644669381706,0.03298867,2915.0,2914.8,0.92057338]
[1644669381929,0.03298867,2915.0,2914.8,0.3378206]
[1644669382329,0.03298867,2915.0,2914.8,0.0378206]
[1644669382528,0.03298867,2915.0,2914.8,0.0346011]
[1644669382728,0.03298867,2915.0,2914.8,0.04395456]
[1644669383731,0.03298867,2915.0,2914.8,0.0346011]
[1644669384031,0.03298867,2915.0,2914.6,0.00341954]
[1644669384235,0.03298867,2915.0,2914.8,0.00935346]
[1644669385034,0.03298867,2915.0,2914.6,0.71662773]
[1644669385238,0.03298867,2915.0,2914.8,0.00935346]
[1644669386087,0.03298867,2915.0,2914.6,1.17927999]
[1644669386288,0.03298867,2915.0,2914.8,0.00935346]
[1644669387385,0.03298867,2915.0,2914.6,1.02004727]
[1644669387687,0.03298867,2915.0,2914.8,0.00935346]
[1644669388585,0.03298867,2915.0,2914.8,3.52773095]
[1644669388786,0.03298867,2915.0,2914.9,1.0]
[1644669388986,0.03298867,2915.0,2914.8,0.00935346]
[1644669389631,0.03298867,2915.0,2914.6,1.02004727]
[1644669390031,0.03298867,2915.0,2914.8,0.00935346]
[1644669390831,0.03298867,2915.0,2914.6,2.19154727]
[1644669391232,0.03298867,2915.0,2914.8,0.00935346]
[1644669391433,0.03298867,2915.0,2914.8,1.00935346]
[1644669391834,0.03298867,2915.0,2914.8,1.30935346]
[1644669392139,0.03298867,2915.0,2914.8,1.3]
[1644669392335,0.03298867,2915.0,2914.8,1.30935346]
[1644669393377,0.03298867,2915.0,2914.8,1.3]
[1644669393580,0.03298867,2915.0,2914.8,1.30935346]
[1644669394581,0.03298867,2915.0,2914.8,1.3]
[1644669394786,0.03298867,2915.0,2914.8,1.30935346]
[1644669395480,0.03141277,2915.0,2914.9,3.45617546]
[1644669395682,0.03225106,2915.0,2914.8,0.3]
[1644669395882,0.03145106,2915.0,2914.8,1.0]
[1644669396085,0.03145106,2915.0,2914.9,3.89917535]
[1644669396283,0.03145106,2915.0,2914.9,5.19917535]
[1644669397131,0.03145106,2915.0,2914.9,1.791]
[1644669397336,0.03145106,2915.0,2914.9,0.791]
[1644669399338,0.6537756,2916.5,2915.2,3.35]
[1644669399537,0.6537756,2916.5,2915.6,5.0]
[1644669399739,3.49357657,2917.1,2915.6,0.3]
[1644669399740,0.00934944,2915.7,2915.6,0.3]
[1644669400136,0.00934944,2915.7,2915.6,0.491]
[1644669400336,0.00934944,2915.7,2915.6,0.65365226]
[1644669400582,0.55551339,2916.4,2915.6,0.65365226]
[1644669400777,1.45928254,2916.3,2915.6,0.491]
[1644669401380,1.45928254,2916.2,2915.6,0.491]
[1644669401778,1.75928254,2916.2,2915.6,0.491]
[1644669401980,0.00934331,2916.0,2915.6,0.491]
[1644669402589,0.00934331,2916.0,2915.6,2.36831226]
[1644669402781,0.1713,2916.9,2915.9,0.85704]
[1644669402981,1.45903481,2916.8,2916.0,0.491]
[1644669403181,1.45903481,2916.8,2916.0,0.791]
[1644669403381,0.1713,2917.3,2916.0,0.791]
[1644669403382,1.45903481,2916.7,2916.0,0.791]
[1644669403581,0.03735919,2917.1,2916.4,0.53613126]
[1644669403582,2.0815658,2917.0,2916.4,0.53613126]
[1644669403783,1.45904375,2916.9,2916.4,0.53613126]
[1644669403983,1.45904375,2916.9,2916.2,3.991]
[1644669404185,1.45904375,2917.0,2916.3,0.85721]
[1644669404435,1.45895905,2916.9,2916.4,0.491]
[1644669404634,0.001,2916.8,2916.4,0.791]
[1644669404834,1.45893633,2917.6,2916.4,0.791]
[1644669405033,1.45993633,2917.5,2916.4,0.491]
[1644669405243,1.45993633,2917.5,2916.7,0.53594918]
[1644669405244,0.92120055,2917.3,2916.7,0.53594918]
[1644669405434,1.45893633,2917.2,2916.7,0.85706]
[1644669405634,0.001,2917.1,2916.7,0.85706]
[1644669405833,0.001,2917.1,2916.7,0.3]
[1644669406234,0.001,2917.1,2916.6,0.791]
[1644669406434,0.001,2917.1,2916.4,3.65050123]
[1644669406635,1.45893633,2917.2,2917.1,0.001]
[1644669406834,0.002,2916.9,2916.5,3.66768083]
[1644669407035,0.002,2916.9,2916.4,0.57398721]
[1644669407739,0.002,2916.9,2916.5,3.36542829]
[1644669407937,0.002,2916.9,2916.4,0.57398721]
[1644669408181,0.00933788,2916.8,2916.4,0.57398721]
[1644669408579,0.00933788,2916.8,2916.6,0.02401541]
[1644669408982,0.002,2916.9,2916.6,0.02401541]
[1644669409388,0.00933783,2916.8,2916.6,0.02401541]
[1644669410295,0.002,2916.9,2916.6,0.02401541]
[1644669410485,0.00933783,2916.8,2916.6,0.02401541]
[1644669411385,0.002,2916.9,2916.6,0.02401541]
[1644669411828,0.00933783,2916.8,2916.6,0.02401541]
[1644669412230,0.91988408,2917.3,2916.6,0.02401541]
[1644669412631,0.88253838,2917.3,2916.6,0.02401541]
[1644669413236,4.36725077,2918.1,2916.8,5.0]
[1644669413237,0.6537756,2918.1,2916.8,5.0]
[1644669413436,2.23089059,2918.9,2916.9,3.991]
[1644669413437,0.6537756,2918.9,2916.9,3.991]
[1644669413735,1.04025927,2919.0,2916.9,4.45365226]
[1644669413736,1.45853201,2918.8,2916.9,4.45365226]
[1644669413934,1.62983201,2918.7,2917.0,5.12095226]
[1644669414134,0.68893446,2918.0,2917.4,0.66916846]
[1644669414334,0.68893446,2918.0,2917.1,0.791]
[1644669414542,1.45877947,2917.9,2917.0,4.9583]
[1644669415344,1.75877947,2917.9,2917.2,0.60397952]
[1644669415597,0.3,2917.9,2917.2,0.60397952]
[1644669415782,1.45882285,2917.8,2917.2,0.60397952]
[1644669415982,0.98893446,2918.0,2917.2,0.60397952]
[1644669416283,1.40881718,2917.9,2917.2,0.60397952]
[1644669416482,0.00611107,2917.6,2917.2,0.60397952]
[1644669416682,0.00611107,2917.6,2917.0,4.9583]
[1644669417484,0.68893446,2918.0,2917.0,4.9583]
[1644669417686,0.00556947,2917.4,2917.1,0.64186597]
[1644669418485,0.00556947,2917.4,2917.1,0.66586344]
[1644669418686,0.01943811,2917.8,2917.1,0.66586344]
[1644669418887,0.00879861,2917.4,2917.1,0.66586344]
[1644669419086,0.00879861,2917.4,2917.1,0.02399747]
[1644669419933,0.01943811,2917.8,2917.2,0.1713]
[1644669420133,0.00879861,2917.4,2917.1,0.02399747]
[1644669420437,0.00879861,2917.4,2917.2,0.51672186]
[1644669421034,0.01943811,2917.8,2917.2,0.51672186]
[1644669421436,0.00879855,2917.4,2917.1,0.02399747]
[1644669421635,0.00879855,2917.4,2917.2,0.1713]
[1644669422235,0.01943811,2917.8,2917.2,0.1713]
[1644669422535,0.00872686,2917.4,2917.2,0.1713]
[1644669422736,0.00872686,2917.4,2917.2,0.70190067]
[1644669423183,0.00872686,2917.4,2917.3,3.39112903]
[1644669423382,0.00872686,2917.4,2917.3,4.45222903]
[1644669423589,0.01943811,2917.8,2917.3,1.0611]
[1644669423782,0.00872686,2917.4,2917.3,4.58378406]
[1644669423980,0.00872686,2917.4,2917.3,1.2324]
[1644669424583,0.0193274,2917.7,2917.3,1.2324]
[1644669424985,0.00872681,2917.5,2917.3,1.2324]
[1644669425187,0.00872681,2917.5,2917.3,1.0611]
[1644669425591,0.00872681,2917.5,2917.4,3.40801576]
[1644669425789,0.0193274,2917.7,2917.4,3.57931576]
[1644669426086,0.00873155,2917.5,2917.4,3.87931576]
[1644669426285,0.00873155,2917.5,2917.4,3.70801576]
[1644669427135,0.1713,2918.4,2917.5,3.35]
[1644669427343,0.03492075,2918.0,2917.8,0.85677]
[1644669427543,0.001,2919.0,2917.6,4.55747126]
[1644669427544,0.001,2919.0,2918.0,3.35]
[1644669427747,0.001,2919.0,2918.1,4.92269152]
[1644669428046,0.001,2919.6,2918.1,9.24039152]
[1644669428247,1.9572756,2920.1,2918.1,9.24039152]
[1644669428439,0.001,2920.0,2918.2,0.85656]
[1644669428639,0.001,2920.0,2918.7,0.85651]
[1644669428640,0.17597295,2920.0,2918.7,0.85651]
[1644669428842,0.17597295,2920.0,2918.5,0.58444423]
[1644669428843,0.69882062,2918.6,2918.5,0.58444423]
[1644669429047,0.69882062,2918.6,2918.4,3.9925]
[1644669429340,0.69882062,2918.6,2918.2,2.20415]
[1644669429341,0.69882062,2918.6,2918.2,0.3]
[1644669429539,0.69882062,2918.6,2917.9,0.4713]
[1644669429741,0.00387295,2918.5,2918.0,0.3]
[1644669429942,0.00387295,2918.5,2918.1,1.02793]
[1644669430143,0.00387295,2918.5,2918.2,0.61021164]
[1644669430343,1.00433183,2918.6,2918.2,0.61021164]
[1644669430586,0.001,2918.5,2918.2,0.61021164]
[1644669430784,0.99882062,2918.6,2918.3,0.1713]
[1644669430978,0.0126412,2918.5,2918.2,2.32317164]
[1644669431179,0.00976825,2918.5,2918.2,2.62317164]
[1644669431380,0.0136412,2918.5,2918.2,0.91021164]
[1644669431579,0.0136412,2918.5,2918.3,3.49143026]
[1644669431781,0.001,2918.5,2918.3,0.1713]
[1644669431979,0.99882062,2918.6,2918.3,0.1713]
[1644669432178,0.00876825,2918.5,2918.3,0.1713]
[1644669432379,0.00976825,2918.5,2918.3,0.1713]
[1644669432578,0.00876825,2918.5,2918.3,0.1713]
[1644669433079,0.69882062,2918.6,2918.3,0.1713]
[1644669433478,0.00886683,2918.5,2918.3,0.1713]
[1644669433978,0.09256599,2918.5,2918.3,0.1713]
[1644669434435,0.08369916,2918.5,2918.3,0.1713]
[1644669434733,0.09256599,2918.5,2918.3,0.1713]
[1644669435332,0.09256599,2918.5,2918.3,1.88428]
[1644669435533,0.08369916,2918.5,2918.4,3.42055997]
[1644669436037,0.17517295,2919.7,2918.5,3.35]
[1644669436234,0.00387295,2919.5,2918.6,6.17757002]
[1644669436433,0.1713,2920.3,2918.7,0.1711]
[1644669436434,0.00387295,2919.6,2918.7,0.1711]
[1644669436636,0.1713,2920.3,2918.8,0.491]
[1644669436637,0.00387295,2919.7,2918.8,0.491]
[1644669436834,1.46175853,2920.2,2918.9,4.13686312]
[1644669437034,0.59485444,2920.1,2919.5,0.60767639]
[1644669437234,1.46175853,2920.0,2919.5,0.60767639]
[1644669437434,0.00387295,2920.1,2919.5,0.60767639]
[1644669437633,1.45783004,2920.1,2919.5,0.60767639]
[1644669437833,0.00387295,2920.0,2919.5,0.90767639]
[1644669438082,1.46170136,2920.2,2919.5,0.90767639]
[1644669438389,0.17497295,2920.4,2919.6,3.42589671]
[1644669438579,0.00387295,2920.1,2919.6,3.42589671]
[1644669438781,1.4577406,2920.2,2919.6,3.79829671]
[1644669438980,0.00387295,2920.1,2919.6,3.42589671]
[1644669439179,1.46145372,2920.4,2919.5,0.3]
[1644669439584,1.46145372,2920.4,2919.3,0.1711]
[1644669439783,1.46145372,2920.4,2919.7,0.60170661]
[1644669440183,1.76145372,2920.4,2919.7,0.60170661]
[1644669440382,1.45758077,2920.3,2919.7,0.60170661]
[1644669440584,0.00387295,2920.2,2919.7,0.60170661]
[1644669441183,0.00487295,2920.2,2919.7,0.60170661]
[1644669441684,0.00387295,2920.3,2919.7,0.60170661]
[1644669442228,1.46152191,2920.3,2919.7,0.60170661]
[1644669442430,1.45864896,2920.2,2919.7,0.60170661]
[1644669442629,0.00487295,2920.1,2919.7,0.60170661]
[1644669443029,0.00387295,2920.1,2919.7,0.60170661]
[1644669443232,0.30387295,2920.1,2919.7,0.60170661]
[1644669443431,0.3,2920.1,2919.7,0.60170661]
[1644669443831,0.30487295,2920.4,2919.7,0.60170661]
[1644669444031,1.45761759,2920.3,2919.8,0.02397694]
[1644669444231,0.001,2920.2,2919.8,0.02397694]
[1644669444438,0.00487295,2920.2,2919.8,0.02397694]
[1644669444638,0.001,2920.2,2919.8,0.02397694]
[1644669444835,0.00387295,2920.3,2919.8,0.02397694]
[1644669445036,0.60159384,2920.0,2919.8,0.02397694]
[1644669445237,0.90159384,2920.0,2919.8,0.02397694]
[1644669445680,0.90159384,2920.0,2919.9,0.00082044]
[1644669448886,0.03241628,2919.2,2919.1,5.25254571]
[1644669449082,0.03241628,2919.2,2919.1,2.48591243]
[1644669449331,0.03241628,2919.2,2919.1,5.93525001]
[1644669449532,0.03241628,2919.2,2919.1,5.07891001]
[1644669449934,0.03241628,2919.2,2919.1,0.62957243]
[1644669450336,0.03241628,2919.2,2918.9,3.42024284]
[1644669450538,0.03241628,2919.2,2918.8,1.4178]
[1644669450740,0.03241628,2919.2,2918.8,0.1711]
[1644669451137,0.00934365,2919.1,2918.8,0.1711]
[1644669451337,0.54967588,2918.9,2918.7,0.1711]
[1644669451646,0.54967588,2918.9,2918.5,2.56903]
[1644669451647,0.3,2918.9,2918.5,0.1711]
[1644669451836,0.00934365,2919.1,2918.5,0.1711]
[1644669452040,0.03241628,2919.2,2918.5,0.1711]
[1644669452436,0.00934399,2918.8,2918.5,0.1711]
[1644669453282,0.00387295,2919.0,2918.5,0.1711]
[1644669453483,0.00934405,2918.8,2918.4,0.8272922]
[1644669453682,0.00934405,2918.8,2918.4,0.1713]
[1644669454084,0.00934405,2918.8,2918.2,4.8232]
[1644669454490,0.00387295,2919.0,2918.2,3.6392]
[1644669454688,0.00934421,2918.6,2918.2,3.6392]
[1644669454887,0.55094856,2918.4,2918.2,3.6392]
[1644669455089,0.55094856,2918.4,2917.9,0.00934675]
[1644669455090,0.85094856,2918.4,2917.9,0.00934675]
[1644669455689,2.18244856,2918.4,2917.6,0.1713]
[1644669455896,0.01421755,2918.3,2917.9,0.00934602]
[1644669456089,0.0103446,2918.3,2917.9,0.00934602]
[1644669456290,0.01421755,2918.3,2917.9,0.00934602]
[1644669456945,0.01421755,2918.3,2917.0,3.6713]
[1644669456946,1.45859864,2918.2,2917.0,3.6713]
[1644669457140,2.12089864,2918.2,2916.8,3.5]
[1644669457339,1.45859864,2918.1,2917.9,0.00934592]
[1644669457541,0.1713,2918.0,2917.9,0.00934592]
[1644669458141,0.1713,2918.0,2917.5,0.50744468]
[1644669458344,0.791,2918.2,2917.8,0.00934576]
[1644669458345,0.56942668,2917.9,2917.8,0.00934576]
[1644669458743,0.86942668,2917.9,2917.8,0.00934576]
[1644669459344,0.86942668,2917.9,2916.7,2.06324]
[1644669459552,0.86942668,2917.9,2917.7,0.00934587]
[1644669459748,0.76637105,2917.8,2917.7,0.00934587]
[1644669460592,0.76637105,2917.8,2917.0,0.64637083]
[1644669460781,0.59507105,2917.8,2917.6,0.00934599]
[1644669461784,0.59507105,2917.8,2916.9,0.1713]
[1644669461984,0.59507105,2917.8,2917.6,0.00934604]
[1644669462583,0.1713,2917.7,2917.6,0.00934604]
[1644669462787,0.59507105,2917.8,2917.6,0.00934604]
[1644669462985,0.59507105,2917.8,2916.8,1.67553409]
[1644669463186,0.59507105,2917.8,2917.5,0.0093461]
[1644669463885,0.67581888,2917.8,2917.7,0.02017816]
[1644669465335,2.8991602,2917.8,2917.7,0.02017816]
[1644669465536,3.30408915,2917.8,2917.6,0.00934599]
[1644669465735,5.3,2917.7,2917.6,0.00934599]
[1644669465936,5.791,2917.7,2917.6,0.00934599]
[1644669466136,7.24974132,2917.7,2917.6,0.00934599]
[1644669466437,7.24974132,2917.7,2916.6,0.25]
[1644669466638,5.0,2917.5,2916.3,2.50580597]
[1644669466840,0.491,2917.4,2916.3,2.50580597]
[1644669467036,0.491,2917.4,2916.3,0.1713]
[1644669467037,0.6624,2917.4,2916.3,0.1713]
[1644669467939,0.6624,2917.4,2916.7,0.00934699]
[1644669468185,0.58605324,2916.8,2916.7,0.00934699]
[1644669468385,0.88605324,2916.8,2916.7,0.00934699]
[1644669468983,0.88605324,2916.8,2916.3,0.1713]
[1644669469184,0.88605324,2916.8,2916.6,0.00934711]
[1644669470188,0.88605324,2916.8,2916.3,0.1713]
[1644669470390,0.88605324,2916.8,2916.6,0.00934716]
[1644669471390,0.88605324,2916.8,2916.2,0.1713]
[1644669471593,0.88605324,2916.8,2916.6,0.00934716]
[1644669472445,0.88605324,2916.8,2916.2,0.1713]
[1644669472446,0.01869432,2916.5,2916.2,0.1713]
[1644669473436,0.01869432,2916.5,2916.2,0.82355676]
[1644669473641,0.01869432,2916.5,2916.4,0.00866256]
[1644669478391,0.01869432,2916.5,2916.3,0.00934744]
[1644669478594,0.01869432,2916.5,2916.2,0.00867936]
[1644669478791,0.01869432,2916.5,2916.3,0.00934744]
[1644669479638,0.01869432,2916.5,2916.2,0.00867936]
[1644669480038,0.01869432,2916.5,2916.3,0.0093475]
[1644669480938,0.01869432,2916.5,2916.2,0.00867936]
[1644669481141,0.01869432,2916.5,2916.3,0.0093475]
[1644669482152,0.01869432,2916.5,2916.2,0.00867936]
[1644669482344,0.01869432,2916.5,2916.3,0.0093475]
[1644669483384,0.01869432,2916.5,2916.2,0.00867936]
[1644669483585,0.01869432,2916.5,2916.3,0.0093475]
[1644669484183,0.18999432,2916.5,2916.3,0.0093475]
[1644669484587,0.18999432,2916.5,2915.6,0.0099038]
[1644669484788,0.18999432,2916.5,2916.3,0.0093475]
[1644669485889,0.51009664,2916.0,2915.6,0.0099038]
[1644669486088,0.81009664,2916.0,2915.6,0.0099038]
[1644669487139,1.66859664,2916.0,2915.7,0.00934817]
[1644669488145,1.66859664,2916.0,2915.6,0.0099038]
[1644669488340,1.66859664,2916.0,2915.7,0.00934811]
[1644669489343,0.491,2915.9,2915.6,0.001422]
[1644669489546,5.6623,2915.9,2915.7,0.00934811]
[1644669490144,0.6623,2915.9,2915.7,0.00934811]
[1644669490348,5.0,2915.8,2915.7,0.00934811]